fUSD/lending_fUSD_20251026
["ID","MTS","AMOUNT","RATE_DAILY","PERIOD"]
[392461859,1761509064706,-334.26072118,0.00018032,2]
[392461861,1761509358146,-61.05041401,0.00018032,2]
[392461862,1761509358166,-279.16791056,0.00018132,2]
[392461863,1761509358185,-150.0,0.00018132,2]
[392461864,1761509358205,-464.62,0.00019086,2]
[392461865,1761509358223,-567.88595721,0.0002002,2]
[392461866,1761509358242,-464.62,0.0002004,2]
[392461867,1761509358262,-464.62,0.00020995,2]
[392461868,1761509358283,-464.62,0.00021949,2]
[392461869,1761509358302,-250.0,0.00022487,2]
[392461870,1761509358321,-464.62,0.00022903,2]
[392461871,1761509358340,-1513.58522252,0.00023539,2]
[392461872,1761509358361,-464.62,0.00023857,2]
[392461873,1761509358381,-464.62,0.00024812,2]
[392461874,1761509358408,-184.71,0.00025109,2]
[392461875,1761509358427,-464.62,0.00025766,2]
[392461876,1761509358447,-464.62,0.0002672,2]
[392461877,1761509358465,-150.58,0.00027128,2]
[392461878,1761509358484,-1119.0,0.00027672,2]
[392461879,1761509358502,-464.62,0.00027675,2]
[392461880,1761509358522,-464.62,0.00028629,2]
[392461881,1761509358541,-254.2721366,0.000294,2]
[392461882,1761509360114,-162.63544939,0.000294,2]
[392461891,1761509432389,-2943.0,0.000291,2]
[392461892,1761509432398,-300.0,0.00029575,2]
[392461893,1761509432407,-1200.0,0.00029576,2]
[392461894,1761509432417,-464.62,0.00029583,2]
[392461895,1761509432426,-207.2840007,0.00030019,2]
[392461896,1761509432435,-464.62,0.00030538,2]
[392461897,1761509432444,-1157.64520519,0.00031017,2]
[392461898,1761509432495,-1607.35479481,0.00031017,2]
[392461899,1761509432504,-250.0,0.00031203,2]
[392461900,1761509432514,-191.22,0.00031215,2]
[392461901,1761509432523,-471.35,0.00031275,2]
[392461902,1761509432532,-612.48,0.00031322,2]
[392461903,1761509432541,-1206.83,0.00031406,2]
[392461904,1761509432550,-400.0,0.00031491,3]
[392461905,1761509432559,-180.0,0.00031491,2]
[392461906,1761509432567,-464.62,0.00031492,2]
[392461907,1761509432576,-291.28,0.00031507,3]
[392461908,1761509432585,-197.0,0.00031889,3]
[392461909,1761509432595,-400.0,0.0003189,3]
[392461910,1761509432603,-207.2840007,0.00031898,2]
[392461911,1761509432612,-464.62,0.00032446,2]
[392461912,1761509432621,-612.48,0.00032497,2]
[392461913,1761509432630,-191.22,0.0003295,2]
[392461914,1761509432639,-197.0,0.00033,14]
[392461915,1761509432648,-995.54842655,0.00033093,2]
[392461916,1761509432659,-1483.0,0.00033093,2]
[392461917,1761509432674,-9286.42501421,0.00033093,2]
[392461918,1761509432683,-500.0,0.00033114,7]
[392461919,1761509432693,-174.68138521,0.00033114,7]
[392461920,1761509432702,-500.0,0.00033114,7]
[392461921,1761509432711,-500.0,0.00033114,7]
[392461922,1761509432721,-500.0,0.00033114,7]
[392461923,1761509432735,-292.27385327,0.00033114,7]
[392461924,1761509432744,-2092.66186637,0.00033115,7]
[392461925,1761509432765,-24061.47518784,0.00033115,7]
[392461926,1761509432777,-23848.13294579,0.00033115,7]
[392461927,1761509432787,-464.62,0.000334,2]
[392461928,1761509432795,-612.48,0.00033671,2]
[392461929,1761509432806,-168.0,0.00033799,2]
[392461931,1761509432815,-168.0,0.00033871,2]
[392461932,1761509432824,-216.06843093,0.00033975,2]
[392461934,1761509432833,-168.0,0.00034157,2]
[392461935,1761509432842,-168.0,0.00034268,2]
[392461936,1761509432851,-163.44,0.00034275,2]
[392461937,1761509432861,-168.0,0.00034315,2]
[392461938,1761509432870,-464.62,0.00034355,2]
[392461939,1761509432879,-1627.0,0.000345,2]
[392461940,1761509432888,-191.22,0.00034684,2]
[392461941,1761509432897,-612.48,0.00034846,2]
[392461942,1761509432906,-150.0,0.00035063,4]
[392461943,1761509432915,-1405.0,0.00035082,2]
[392461944,1761509432925,-168.0,0.00035225,7]
[392461945,1761509432934,-464.62,0.00035309,2]
[392461946,1761509432943,-168.0,0.00035384,2]
[392461947,1761509432952,-168.0,0.00035496,7]
[392461948,1761509432961,-888.05904,0.0003564,2]
[392461949,1761509432970,-344.46457403,0.00035746,2]
[392461950,1761509432979,-233.8448,0.000358,2]
[392461951,1761509432988,-1425.0,0.00035806,2]
[392461952,1761509432997,-700.54419301,0.00035807,7]
[392461953,1761509433009,-1425.0,0.00035871,2]
[392461954,1761509433018,-977.12565957,0.000359,2]
[392461955,1761509433027,-230.96681531,0.000359,2]
[392461956,1761509433035,-1425.0,0.00035928,2]
[392461957,1761509433044,-6068.3602749,0.00035969,2]
[392461958,1761509433053,-2645.9889909,0.00035969,2]
[392461959,1761509433063,-1000.0,0.0003597,2]
[392461960,1761509433072,-1000.0,0.0003597,2]
[392461961,1761509433081,-500.0,0.00035973,5]
[392461962,1761509433090,-240.08751556,0.00035988,15]
[392461963,1761509433099,-185.4432112,0.00035989,2]
[392461964,1761509433108,-15104.30512361,0.00035989,2]
[392461965,1761509433120,-52143.92367769,0.00035989,2]
[392461966,1761509433129,-2058.2033823,0.00035989,2]
[392461967,1761509433139,-1425.0,0.00035989,2]
[392461968,1761509433147,-9051.11776414,0.00035989,2]
[392461977,1761509438395,-782.54342496,0.00035989,2]
[392461991,1761509440592,-895.13654905,0.00035989,2]
[392461995,1761509446508,-2278.0136,0.00035989,2]
[392461996,1761509523851,181.0,0.00038815,50]
[392461997,1761509618403,229.65,0.00013699,2]
[392461999,1761509678579,575.0,0.00031507,120]
[392462000,1761509825481,151.0,0.00038815,120]
[392462001,1761509826086,151.0,0.00038815,120]
[392462002,1761509826701,151.0,0.00038815,120]
[392462003,1761509827990,250.0,0.00038815,120]
[392462004,1761509828600,250.0,0.00038815,120]
[392462006,1761510124969,250.0,0.00038815,120]
[392462007,1761510125244,151.0,0.00038815,120]
[392462008,1761510125777,250.0,0.00038815,120]
[392462009,1761510125860,151.0,0.00038815,120]
[392462010,1761510126383,250.0,0.00038815,120]
[392462011,1761510126499,151.0,0.00038815,120]
[392462012,1761510127006,250.0,0.00038815,120]
[392462013,1761510127181,151.0,0.00038815,120]
[392462014,1761510127582,250.0,0.00038815,120]
[392462016,1761510307727,139270.35,0.00015,2]
[392462017,1761510307756,33729.65,0.00015,2]
[392462019,1761510400738,-229.65,0.00020187,2]
[392462021,1761510425004,151.0,0.00038815,120]
[392462022,1761510425720,151.0,0.00038815,120]
[392462023,1761510426261,151.0,0.00038815,120]
[392462024,1761510426850,151.0,0.00038815,120]
[392462025,1761510427328,-177.11819484,0.00026676,2]
[392462026,1761510428011,250.0,0.00038815,120]
[392462027,1761510428584,250.0,0.00038815,120]
[392462028,1761510429214,250.0,0.00038815,120]
[392462029,1761510429834,500.0,0.00038815,120]
[392462030,1761510430427,500.0,0.00038815,120]
[392462031,1761510430586,414.0,0.00038815,120]
[392462032,1761510431027,500.0,0.00038815,120]
[392462033,1761510431646,500.0,0.00038815,120]
[392462034,1761510434952,200.0,0.00038815,120]
[392462037,1761510476946,29770.35,0.00015,2]
[392462038,1761510476971,62927.4457046,0.00015,2]
[392462042,1761510545134,-440.96703617,0.000215,2]
[392462043,1761510545152,-86.9213453,0.00026,2]
[392462044,1761510563094,-1749.92675274,0.00026,2]
[392462045,1761510563117,-213.43636344,0.00026,2]
[392462046,1761510563139,-52.53180516,0.00026676,2]
[392462047,1761510563158,-1427.73194202,0.00027297,2]
[392462048,1761510563177,-156.91339295,0.00027397,3]
[392462056,1761510637591,-92.08660705,0.00027397,3]
[392462057,1761510637601,-166.11324348,0.00032,120]
[392462058,1761510637612,-322.20001349,0.00032486,2]
[392462059,1761510637623,-229.65,0.00033165,2]
[392462060,1761510637634,-1769.0,0.000332,2]
[392462061,1761510637645,-847.30996036,0.00033531,2]
[392462062,1761510637657,-510.51919864,0.00033531,2]
[392462063,1761510637667,-1356.0,0.000337,2]
[392462064,1761510637677,-2541.72608457,0.000337,3]
[392462065,1761510637689,-1361.37716182,0.000337,3]
[392462243,1761510642626,-150.0,0.00033665,3]
[392462244,1761510642637,-1611.89675361,0.000337,3]
[392462245,1761510642649,-5515.0,0.000342,5]
[392462246,1761510642658,-2105.46,0.00034319,2]
[392462247,1761510642682,-1600.0,0.00034449,120]
[392462248,1761510642693,-194.66,0.00034489,30]
[392462249,1761510642704,-150.0,0.00034558,2]
[392462250,1761510642714,-500.0,0.00034559,7]
[392462251,1761510642724,-500.0,0.00034559,7]
[392462252,1761510642735,-500.0,0.00034559,7]
[392462253,1761510642751,-500.0,0.00034559,7]
[392462254,1761510642763,-500.0,0.00034559,7]
[392462255,1761510642773,-500.0,0.00034559,7]
[392462256,1761510642784,-500.0,0.00034559,7]
[392462257,1761510642794,-500.0,0.00034559,7]
[392462258,1761510642805,-500.0,0.00034559,7]
[392462259,1761510642815,-454.89481013,0.00034559,7]
[392462260,1761510642828,-500.0,0.00034559,7]
[392462261,1761510642839,-500.0,0.00034559,7]
[392462262,1761510642850,-500.0,0.00034559,7]
[392462263,1761510642861,-41549.6049638,0.0003456,2]
[392462264,1761510642872,-252.71,0.00034568,2]
[392462265,1761510642881,-308.7818016,0.00034573,5]
[392462266,1761510642891,-501.61637599,0.00034573,5]
[392462267,1761510642902,-9049.52,0.00034641,2]
[392462268,1761510642912,-179.035,0.00034695,39]
[392462269,1761510642922,-999.0,0.00034695,3]
[392462270,1761510642932,-13961.74,0.00034795,2]
[392462271,1761510642942,-155.67,0.0003496,2]
[392462272,1761510642952,-174.8355989,0.00034996,2]
[392462273,1761510642962,-14418.2196736,0.00034996,2]
[392462274,1761510642972,-206.0,0.00035252,2]
[392462275,1761510642982,-2500.0,0.000353,14]
[392462276,1761510642992,-575.0,0.00035354,120]
[392462277,1761510643002,-339.0,0.00035629,7]
[392462278,1761510643012,-740.0492,0.0003563,2]
[392462279,1761510643021,-475.59,0.00035654,2]
[392462280,1761510643031,-215.149,0.00035773,2]
[392462281,1761510643042,-160.92436341,0.00035826,7]
[392462282,1761510643051,-152.0,0.00035826,7]
[392462283,1761510643061,-152.0,0.00035826,7]
[392462284,1761510643071,-152.0,0.00035826,7]
[392462285,1761510643081,-152.0,0.00035826,7]
[392462286,1761510643091,-824.0,0.00035826,7]
[392462287,1761510643102,-152.0,0.00035826,7]
[392462288,1761510643114,-824.0,0.00035826,7]
[392462289,1761510643124,-824.0,0.00035826,7]
[392462290,1761510643134,-824.0,0.00035826,7]
[392462291,1761510643145,-828.36784528,0.00035826,7]
[392462292,1761510643155,-206.0,0.00035841,7]
[392462293,1761510643166,-740.0492,0.0003586,2]
[392462294,1761510643179,-3690.1967,0.00035889,2]
[392462295,1761510643190,-3474.97504017,0.0003589,2]
[392462296,1761510643200,-879.41309355,0.000359,2]
[392462297,1761510643210,-720.68455957,0.00035932,7]
[392462298,1761510643220,-152.0,0.00035932,7]
[392462299,1761510643400,-152.0,0.00035932,7]
[392462300,1761510643414,-152.0,0.00035932,7]
[392462301,1761510643425,-154.43794593,0.00035932,7]
[392462302,1761510643435,-152.0,0.00035932,7]
[392462303,1761510643446,-152.0,0.00035932,7]
[392462304,1761510643458,-152.0,0.00035932,7]
[392462305,1761510643468,-152.0,0.00035932,7]
[392462306,1761510643478,-152.0,0.00035932,7]
[392462307,1761510643490,-206.05073482,0.00035932,7]
[392462308,1761510643499,-533.15473545,0.00035973,5]
[392462309,1761510643509,-160.32573851,0.00035973,2]
[392462310,1761510643518,-511.80013752,0.00035973,5]
[392462311,1761510643529,-500.0,0.00035973,5]
[392462312,1761510643539,-500.0,0.00035973,5]
[392462313,1761510643548,-502.74553433,0.00035973,5]
[392462314,1761510643557,-500.0,0.00035973,5]
[392462315,1761510643566,-414.8,0.00035978,2]
[392462316,1761510643575,-740.0492,0.00035989,2]
[392462317,1761510643585,-29968.90762797,0.00035989,2]
[392462318,1761510643594,-1048.999999,0.0003599,30]
[392462319,1761510643605,-280.979,0.00035999,2]
[392462320,1761510643615,-500.0,0.00035999,7]
[392462321,1761510643624,-500.0,0.00035999,9]
[392462322,1761510643633,-257.44606605,0.00035999,15]
[392462323,1761510643643,-48958.1041301,0.00036,31]
[392462324,1761510643653,-205108.4016031,0.00036,2]
[392462325,1761510643664,-1000.0,0.00036,2]
[392462326,1761510643678,-1000.0,0.00036,2]
[392462327,1761510643687,-1000.0,0.00036,2]
[392462328,1761510643696,-1000.0,0.00036,2]
[392462329,1761510643706,-1000.0,0.00036,2]
[392462330,1761510643715,-1000.0,0.00036,2]
[392462331,1761510643725,-1000.0,0.00036,2]
[392462332,1761510643734,-1000.0,0.00036,2]
[392462333,1761510643746,-1000.0,0.00036,2]
[392462334,1761510643756,-836.43532844,0.00036,2]
[392462335,1761510643765,-150.0,0.00036,2]
[392462336,1761510643774,-151.0,0.00036,31]
[392462337,1761510643784,-151.0,0.00036,31]
[392462338,1761510643795,-151.0,0.00036,31]
[392462339,1761510643804,-151.0,0.00036,31]
[392462340,1761510643813,-151.0,0.00036,31]
[392462341,1761510643822,-151.0,0.00036,31]
[392462342,1761510643831,-151.0,0.00036,31]
[392462343,1761510643840,-151.0,0.00036,31]
[392462344,1761510643849,-151.0,0.00036,31]
[392462345,1761510643859,-267.927669,0.00036,31]
[392462346,1761510643868,-151.0,0.00036,31]
[392462347,1761510643877,-238.561108,0.00036,31]
[392462348,1761510643886,-156.867739,0.00036,31]
[392462349,1761510643896,-151.0,0.00036,31]
[392462350,1761510643904,-151.0,0.00036,31]
[392462351,1761510643913,-156.744368,0.00036,31]
[392462352,1761510643923,-781.44,0.00036,14]
[392462353,1761510643932,-151.0,0.00036,15]
[392462354,1761510643941,-187.426162,0.00036,15]
[392462355,1761510643951,-151.0,0.00036,31]
[392462356,1761510643959,-257.879117,0.00036,31]
[392462357,1761510643969,-151.0,0.00036,31]
[392462358,1761510643978,-151.0,0.00036,31]
[392462359,1761510643987,-151.0,0.00036,31]
[392462360,1761510643997,-151.0,0.00036,31]
[392462361,1761510644007,-151.0,0.00036,31]
[392462362,1761510644016,-167.545004,0.00036,31]
[392462363,1761510644025,-151.0,0.00036,31]
[392462364,1761510644034,-151.0,0.00036,31]
[392462365,1761510644043,-151.0,0.00036,31]
[392462366,1761510644052,-296.109214,0.00036,31]
[392462367,1761510644061,-151.0,0.00036,31]
[392462368,1761510644071,-151.0,0.00036,31]
[392462369,1761510644080,-1230.37752781,0.00036,120]
[392462370,1761510644089,-151.0,0.00036,31]
[392462371,1761510644099,-151.0,0.00036,31]
[392462372,1761510644108,-4798.60500669,0.00036,2]
[392462375,1761510730216,414.0,0.00038815,50]
[392462376,1761510730446,247.77310714,0.00038815,50]
[392462377,1761510730811,429.318,0.00038815,50]
[392462378,1761510731429,445.202766,0.00038815,50]
[392462379,1761510732111,445.202766,0.00038815,50]
[392462380,1761510733013,500.0,0.00038815,50]
[392462381,1761510733609,500.0,0.00038815,50]
[392462382,1761510734280,500.0,0.00038815,50]
[392462383,1761510734906,500.0,0.00038815,50]
[392462384,1761510735500,500.0,0.00038815,50]
[392462385,1761510736132,500.0,0.00038815,50]
[392462386,1761511033585,500.0,0.00038848,50]
[392462387,1761511540130,-259.88915071,0.00032,120]
[392462388,1761511540150,-151.85,0.00032139,2]
[392462389,1761511540171,-32.13965943,0.00033,120]
[392462391,1761511618088,-214.93479807,0.00032,120]
[392462392,1761511618110,-105.41451956,0.00033,120]
[392462402,1761511831689,-178.81,0.00027424,2]
[392462403,1761511831698,-109.52027851,0.00033,120]
[392462404,1761511831708,-319.5646,0.00033235,2]
[392462405,1761511831717,-1000.0,0.00033368,2]
[392462406,1761511831726,-108.56403604,0.00033642,2]
[392462407,1761511831745,-891.43596396,0.00033642,2]
[392462408,1761511831754,-55.62422173,0.000337,2]
[392462409,1761511831855,-1301.17484016,0.000337,2]
[392462410,1761511831864,-214.93479807,0.000339,120]
[392462411,1761511831873,-1000.0,0.00033916,2]
[392462412,1761511831883,-1000.0,0.0003419,2]
[392462413,1761511831895,-1600.0,0.00034463,3]
[392462414,1761511831905,-1000.0,0.00034464,2]
[392462415,1761511831914,-5065.495569,0.00034536,2]
[392462416,1761511831923,-1999.0,0.0003471,2]
[392462417,1761511831932,-1526.39,0.00034738,2]
[392462418,1761511831941,-1311.42994919,0.00034753,120]
[392462431,1761511837660,-93.1856865,0.00034753,120]
[392462432,1761511837712,-95.38436431,0.00034753,120]
[392462433,1761511837721,-1000.0,0.00034777,2]
[392462434,1761511837732,-771.22174288,0.0003478,2]
[392462437,1761511839880,-391.77825712,0.0003478,2]
[392462438,1761511839904,-603.84083827,0.00034849,2]
[392462439,1761511839930,-380.24100001,0.00034849,2]
[392462440,1761511839954,-454.19408285,0.00034849,2]
[392462441,1761511841907,-58.72407887,0.00034849,2]
[392462442,1761511841916,-1098.03410374,0.00034918,2]
[392462443,1761511842018,-411.96589626,0.00034918,2]
[392462444,1761511842027,-1980.0,0.00034987,2]
[392462445,1761511842036,-214.93479807,0.00035,120]
[392462446,1761511842045,-1903.0,0.00035057,2]
[392462447,1761511842054,-150.0,0.00035088,4]
[392462448,1761511842063,-150.0,0.00035088,4]
[392462449,1761511842072,-237.63186688,0.00035088,4]
[392462450,1761511842080,-150.0,0.00035088,4]
[392462451,1761511842089,-1216.0,0.00035126,2]
[392462452,1761511842098,-659.0,0.00035151,120]
[392462453,1761511842107,-337.92378644,0.000352,120]
[392462454,1761511842118,-168.0,0.0003538,2]
[392462455,1761511842126,-168.0,0.00035541,7]
[392462456,1761511842135,-660.0,0.00035554,7]
[392462457,1761511842144,-151.85,0.00035564,2]
[392462458,1761511842152,-370.0246,0.0003564,2]
[392462459,1761511842161,-659.0,0.00035774,2]
[392462460,1761511842170,-150.0,0.000358,2]
[392462461,1761511842179,-150.0,0.000358,2]
[392462462,1761511842188,-150.0,0.000358,2]
[392462463,1761511842197,-3127.47753609,0.000359,2]
[392462464,1761511842205,-14534.11,0.0003599,2]
[392462465,1761511842215,-337.58024334,0.00035998,15]
[392462470,1761511845733,-162.41975666,0.00035998,15]
[392462471,1761511845743,-500.0,0.00035998,15]
[392462472,1761511845752,-500.0,0.00035998,15]
[392462473,1761511845762,-500.0,0.00035998,15]
[392462474,1761511845772,-500.0,0.00035998,15]
[392462475,1761511845781,-463.6649,0.00035998,15]
[392462476,1761511845790,-500.0,0.00035998,15]
[392462477,1761511845799,-500.0,0.00035998,15]
[392462478,1761511845808,-500.0,0.00035998,15]
[392462479,1761511845817,-183.10516435,0.00035998,15]
[392462480,1761511845826,-500.0,0.00035998,15]
[392462481,1761511845836,-500.0,0.00035998,15]
[392462482,1761511845846,-500.0,0.00035998,15]
[392462483,1761511845857,-500.0,0.00035998,15]
[392462484,1761511845867,-500.0,0.00035998,15]
[392462485,1761511845877,-500.0,0.00035999,9]
[392462486,1761511845888,-500.0,0.00035999,9]
[392462487,1761511845903,-500.0,0.00035999,7]
[392462488,1761511845913,-11489.80921999,0.00036,2]
[392462489,1761511845924,-299.79928,0.00036,2]
[392462490,1761511845935,-14696.0614649,0.00036,2]
[392462496,1761512225097,152.35225694,0.00038847,50]
[392462497,1761512227447,500.0,0.00038847,50]
[392462498,1761512228040,500.0,0.00038847,50]
[392462499,1761512229827,500.0,0.00038847,50]
[392462500,1761512229869,414.0,0.00038847,50]
[392462501,1761512230227,500.0,0.00038847,50]
[392462502,1761512230611,429.318,0.00038847,50]
[392462503,1761512230641,500.0,0.00038847,50]
[392462504,1761512230845,518.5,0.00038847,50]
[392462505,1761512231031,445.202766,0.00038847,50]
[392462506,1761512231062,500.0,0.00038847,50]
[392462507,1761512231436,537.6845,0.00038847,50]
[392462508,1761512231654,461.67526834,0.00038847,50]
[392462509,1761512232032,557.5788265,0.00038847,50]
[392462510,1761512232295,478.75725327,0.00038847,50]
[392462511,1761512232899,496.47127164,0.00038847,50]
[392462512,1761512289940,-185.53304745,0.00016712,2]
[392462513,1761512372277,203.08,0.00013699,2]
[392462515,1761512408181,1755.648907,7.945e-05,2]
[392462517,1761512527743,330.63165962,0.00038847,50]
[392462518,1761512530148,189.36589095,0.00038847,50]
[392462520,1761512953148,-5.54695255,0.00016712,2]
[392462521,1761512953168,-267.05449266,0.00017423,2]
[392462522,1761512953193,-1040.26,0.00017423,2]
[392462523,1761512953216,-1040.26,0.0001834,2]
[392462524,1761512953239,-1040.26,0.00019257,2]
[392462525,1761512953260,-1040.26,0.00020174,2]
[392462526,1761512953279,-203.08,0.00020187,2]
[392462527,1761512953298,-1040.26,0.00021091,2]
[392462528,1761512953317,-40.84291625,0.00022,2]
[392462529,1761512958128,-131.15708375,0.00022,2]
[392462530,1761512958148,-1040.26,0.00022008,2]
[392462531,1761512958170,-1040.26,0.00022925,2]
[392462532,1761512958189,-172.0,0.00023014,7]
[392462533,1761512958212,-1040.26,0.00023842,2]
[392462534,1761512958233,-174.0,0.00024164,7]
[392462535,1761512958254,-1040.26,0.00024759,2]
[392462536,1761512958274,-1040.26,0.00025676,2]
[392462537,1761512958294,-172.0,0.00026581,7]
[392462538,1761512958314,-1040.26,0.00026593,2]
[392462539,1761512958335,-203.08,0.00026676,2]
[392462540,1761512958355,-1040.26,0.0002751,2]
[392462541,1761512958376,-282.77462104,0.00028428,2]
[392462547,1761513032065,-757.48537896,0.00028428,2]
[392462548,1761513032075,-200.0,0.00028428,2]
[392462549,1761513032084,-172.0,0.00028997,14]
[392462550,1761513032094,-1040.26,0.00029345,2]
[392462551,1761513032103,-1040.26,0.00030262,2]
[392462552,1761513032113,-1040.26,0.00031179,2]
[392462553,1761513032122,-300.0,0.0003127,2]
[392462554,1761513032133,-202.86,0.00031399,2]
[392462555,1761513032145,-170.15,0.00031469,2]
[392462556,1761513032158,-163.47,0.00031498,2]
[392462557,1761513032168,-179.035,0.00031855,30]
[392462558,1761513032178,-214.93479808,0.00032,120]
[392462559,1761513032188,-1040.26,0.00032096,2]
[392462560,1761513032198,-163.47,0.0003268,2]
[392462561,1761513032208,-1040.26,0.00033013,2]
[392462562,1761513032218,-2209.5395359,0.00033133,2]
[392462563,1761513032231,-203.08,0.00033165,2]
[392462564,1761513032240,-1000.0,0.00033368,2]
[392462565,1761513032250,-163.47,0.00033861,2]
[392462566,1761513032261,-1040.26,0.0003393,2]
[392462567,1761513032270,-166.66,0.00034254,30]
[392462568,1761513032279,-163.0,0.000347,5]
[392462569,1761513032288,-1040.26,0.00034847,2]
[392462570,1761513032298,-500.0,0.00034996,3]
[392462572,1761513032307,-163.47,0.00035042,2]
[392462574,1761513032316,-167.31,0.00035069,2]
[392462576,1761513032325,-150.0,0.00035088,4]
[392462578,1761513032334,-150.0,0.00035088,4]
[392462580,1761513032343,-150.0,0.00035244,2]
[392462582,1761513032351,-414.6,0.00035244,2]
[392462583,1761513032361,-547.92,0.00035244,2]
[392462584,1761513032370,-150.0,0.00035244,2]
[392462585,1761513032379,-414.6,0.00035244,2]
[392462586,1761513032388,-547.92,0.00035244,2]
[392462588,1761513032398,-414.6,0.00035244,2]
[392462590,1761513032407,-150.0,0.00035244,2]
[392462592,1761513032417,-150.0,0.00035244,2]
[392462594,1761513032426,-414.6,0.00035244,2]
[392462596,1761513032436,-547.92,0.00035244,2]
[392462598,1761513032445,-547.92,0.00035244,2]
[392462600,1761513032455,-150.0,0.00035244,2]
[392462602,1761513032465,-414.6,0.00035244,2]
[392462603,1761513032475,-207.49,0.00035244,2]
[392462604,1761513032484,-547.92,0.00035244,2]
[392462605,1761513032493,-414.6,0.00035244,2]
[392462606,1761513032503,-414.6,0.00035244,2]
[392462607,1761513032512,-414.6,0.00035244,2]
[392462608,1761513032521,-414.6,0.00035244,2]
[392462609,1761513032530,-414.6,0.00035244,2]
[392462610,1761513032539,-414.6,0.00035244,2]
[392462611,1761513032548,-414.6,0.00035278,2]
[392462612,1761513032557,-414.6,0.00035278,2]
[392462613,1761513032567,-1109.66883303,0.0003528,20]
[392462614,1761513032575,-969.25750545,0.0003528,20]
[392462615,1761513032584,-547.92,0.000353,2]
[392462616,1761513032593,-166.66,0.00035456,30]
[392462617,1761513032602,-500.0,0.00035616,30]
[392462618,1761513032612,-150.0,0.00035738,2]
[392462619,1761513032621,-150.0,0.00035738,2]
[392462620,1761513032630,-150.0,0.00035738,2]
[392462621,1761513032639,-150.0,0.00035738,2]
[392462622,1761513032648,-150.0,0.00035738,2]
[392462623,1761513032657,-150.0,0.00035738,2]
[392462624,1761513032667,-150.0,0.00035738,2]
[392462625,1761513032675,-150.0,0.00035738,2]
[392462626,1761513032685,-150.0,0.00035738,2]
[392462627,1761513032696,-200.03,0.000358,2]
[392462628,1761513032706,-150.0,0.000358,5]
[392462629,1761513032715,-150.0,0.000358,5]
[392462630,1761513032723,-150.0,0.000358,5]
[392462631,1761513032734,-150.0,0.000358,7]
[392462632,1761513032744,-150.0,0.000358,7]
[392462633,1761513032753,-150.0,0.000358,7]
[392462634,1761513032764,-3091.3090539,0.00035821,2]
[392462635,1761513032774,-168.0,0.00035892,7]
[392462636,1761513032783,-1000.0,0.000359,2]
[392462637,1761513032795,-202.09596344,0.000359,2]
[392462638,1761513032804,-283.35050571,0.00035948,2]
[392462639,1761513032814,-7267.06,0.0003599,2]
[392462640,1761513032825,-414.8,0.00035998,9]
[392462641,1761513032834,-500.0,0.00035999,9]
[392462642,1761513032846,-10964.06218748,0.00035999,2]
[392462643,1761513032855,-500.0,0.00035999,9]
[392462644,1761513032866,-500.0,0.00035999,7]